[Event "55th Rubinstein Memorial-C 2019"]
[Site "Polanica-Zdroj"]
[Date "2019.08.19"]
[Round "3.28"]
[White "Bugaj, Hanna"]
[Black "Klisowski, Bartosz"]
[Result "1-0"]
[ECO "D86"]
[WhiteElo "1622"]
[BlackElo "1372"]
[Annotator "NA RC"]
[PlyCount "85"]
[EventDate "2019.08.17"]
[EventType "swiss"]
[EventCountry "POL"]
[SourceTitle "playchess.com"]
[Source "ChessBase"]
[SourceQuality "1"]
[TimeControl "40/5400+30:1800+30"]

1. d4 {[%emt 0:00:00]} Nf6 {[%emt 0:00:00]} 2. c4 {[%emt 0:00:00]} g6 {[%emt 0:00:22]} 3. Nc3 {[%emt 0:00:00]} d5 {[%emt 0:00:18]} 4. cxd5 {[%emt 0:00:12]} Nxd5 {[%emt 0:00:11]} 5. e4 {[%emt 0:00:08]} Nxc3 {[%emt 0:00:30]} 6. bxc3 {[%emt 0:00:09]} Bg7 {[%emt 0:00:25]} 7. Bc4 {[%emt 0:01:53]} c5 {[%emt 0:01:53]} 8. Be3 {[%emt 0:04:35]} Nc6 {[%emt 0:03:11]} 9. Ne2 {[%emt 0:01:05]} O-O {[%emt 0:03:54]} 10. O-O {[%emt 0:00:31]} a6 {[%emt 0:04:59]} 11. a4 {[%emt 0:06:22]} Qc7 {[%emt 0:07:46]} 12. Ba2 {[%emt 0:11:21]} Rd8 {[%emt 0:05:18]} 13. Qb3 {[%emt 0:11:29]} e6 {[%emt 0:05:23]} 14. Rad1 {[%emt 0:04:48]} cxd4 {[%emt 0:02:13]} 15. cxd4 {[%emt 0:00:24]} Qe7 {[%emt 0:03:37]} 16. Rd2 {[%emt 0:03:09]} Rb8 {[%emt 0:08:39]} 17. d5 {[%emt 0:09:01]} exd5 {[%emt 0:00:55]} 18. exd5 {[%emt 0:00:07]} Ne5 {[%emt 0:02:13]} 19. Bb6 {[%emt 0:02:33]} Rd7 {[%emt 0:02:19]} 20. Rfd1 {[%emt 0:04:11]} Qd6 {[%emt 0:08:25]} 21. Ng3 {[%emt 0:02:27]} Nc4 {[%emt 0:04:30]} 22. Qxc4 {[%emt 0:02:49]} Qxb6 {[%emt 0:00:12]} 23. d6 {[%emt 0:03:54]} Qd8 {[%emt 0:01:43]} 24. Ne4 {[%emt 0:05:25]} b5 {[%emt 0:04:24]} 25. axb5 {[%emt 0:00:53]} axb5 {[%emt 0:00:41]} 26. Qb3 {[%emt 0:03:03]} Bh6 {[%emt 0:03:41]} 27. Rd3 {[%emt 0:01:52]} Bb7 {[%emt 0:01:14]} 28. Nc5 {[%emt 0:02:18]} Qg5 {[%emt 0:01:32]} 29. Nxb7 {[%emt 0:00:06]} Rbxb7 {[%emt 0:00:09]} 30. Rc3 {[%emt 0:07:07]} Bf8 {[%emt 0:02:24]} 31. Rc8 {[%emt 0:02:14]} Qf6 {[%emt 0:02:09]} 32. Qd5 {[%emt 0:02:50]} Kg7 {[%emt 0:03:08]} 33. Rc6 {[%emt 0:00:12]} b4 {[%emt 0:02:15]} 34. Bb3 {[%emt 0:00:42]} h5 {[%emt 0:01:16]} 35. g3 {[%emt 0:01:38]} Kg8 {[%emt 0:02:10]} 36. Ra6 {[%emt 0:00:41]} Kg7 {[%emt 0:00:48]} 37. Ba4 {[%emt 0:00:56]} b3 {[%emt 0:04:13]} 38. Bxd7 {[%emt 0:01:11]} Rxd7 {[%emt 0:00:05]} 39. Qxb3 {[%emt 0:01:04]} Rxd6 {[%emt 0:00:30]} 40. Rdxd6 {[%emt 0:00:21]} Bxd6 {[%emt 0:00:06]} 41. Qd3 {[%emt 0:30:27]} Qe7 {[%emt 0:31:10]} 42. Rxd6 {[%emt 0:00:08]} Qe1+ {[%emt 0:00:06]} 43. Kg2 1-0

[Event "55th Rubinstein Memorial-C 2019"]
[Site "Polanica-Zdroj"]
[Date "2019.08.19"]
[Round "3.29"]
[White "Jurkowska, Magdalena"]
[Black "Mytnik, Kinga"]
[Result "1/2-1/2"]
[ECO "C41"]
[WhiteElo "1320"]
[BlackElo "1620"]
[Annotator "NA RC"]
[PlyCount "96"]
[EventDate "2019.08.17"]
[EventType "swiss"]
[EventCountry "POL"]
[SourceTitle "playchess.com"]
[Source "ChessBase"]
[SourceQuality "1"]
[TimeControl "40/5400+30:1800+30"]

1. e4 {[%emt 0:00:00]} d6 {[%emt 0:00:00]} 2. Nf3 {[%emt 0:00:00]} e5 {[%emt 0:00:05]} 3. d4 {[%emt 0:00:01]} Nd7 {[%emt 0:01:11]} 4. Nc3 {[%emt 0:00:19]} Ngf6 {[%emt 0:00:17]} 5. Be2 {[%emt 0:00:28]} Be7 {[%emt 0:00:12]} 6. O-O {[%emt 0:00:17]} c6 {[%emt 0:00:31]} 7. a3 {[%emt 0:08:44]} a5 {[%emt 0:01:25]} 8. Rb1 {[%emt 0:01:12]} Qc7 {[%emt 0:02:34]} 9. dxe5 {[%emt 0:14:24]} dxe5 {[%emt 0:04:28]} 10. b4 {[%emt 0:10:20]} axb4 {[%emt 0:02:10]} 11. axb4 {[%emt 0:00:05]} Nf8 {[%emt 0:03:07]} 12. b5 {[%emt 0:03:07]} Bc5 {[%emt 0:06:13]} 13. h3 {[%emt 0:06:27]} h6 {[%emt 0:04:01]} 14. Be3 {[%emt 0:00:22]} Bxe3 {[%emt 0:02:54]} 15. fxe3 {[%emt 0:00:06]} Ra3 {[%emt 0:07:53]} 16. Qd2 {[%emt 0:02:57]} Qd7 {[%emt 0:19:27]} 17. Bd3 {[%emt 0:02:39]} Ng6 {[%emt 0:01:09]} 18. bxc6 {[%emt 0:01:15]} bxc6 {[%emt 0:00:15]} 19. Ne2 {[%emt 0:01:40]} O-O {[%emt 0:02:03]} 20. Qb4 {[%emt 0:01:45]} Qa7 {[%emt 0:02:19]} 21. Qb6 {[%emt 0:00:33]} Bd7 {[%emt 0:02:05]} 22. Qxa7 {[%emt 0:00:27]} Rxa7 {[%emt 0:00:06]} 23. Rb2 {[%emt 0:00:13]} Rfa8 {[%emt 0:02:07]} 24. Kf2 {[%emt 0:01:51]} Be8 {[%emt 0:03:59]} 25. Ng3 {[%emt 0:02:48]} Ra4 {[%emt 0:01:04]} 26. Rfb1 {[%emt 0:01:13]} c5 {[%emt 0:00:47]} 27. Nd2 {[%emt 0:01:19]} h5 {[%emt 0:05:09]} 28. Nc4 {[%emt 0:00:33]} Rd8 {[%emt 0:03:11]} 29. Nb6 {[%emt 0:02:57]} Ra7 {[%emt 0:00:31]} 30. Nf5 {[%emt 0:02:52]} Bc6 {[%emt 0:02:34]} 31. Kf3 {[%emt 0:02:32]} Nh7 {[%emt 0:04:05]} 32. h4 {[%emt 0:01:14]} Ne7 {[%emt 0:01:06]} 33. Nxe7+ {[%emt 0:00:21]} Rxe7 {[%emt 0:00:03]} 34. Kf2 {[%emt 0:00:48]} Nf6 {[%emt 0:00:45]} 35. Kf3 {[%emt 0:01:20]} Ng4 {[%emt 0:00:49]} 36. Nc4 {[%emt 0:02:53]} Ree8 {[%emt 0:02:01]} 37. Rb6 {[%emt 0:00:53]} Re6 {[%emt 0:02:03]} 38. Na5 {[%emt 0:00:38]} Rf6+ {[%emt 0:01:30]} 39. Kg3 {[%emt 0:00:43]} Rdd6 {[%emt 0:01:41]} 40. Rf1 {[%emt 0:06:00]} Rg6 {[%emt 0:02:17]} 41. Rf5 {[%emt 0:36:03]} Bd7 {[%emt 0:33:37]} 42. Rb8+ {[%emt 0:00:31]} Kh7 {[%emt 0:00:29]} 43. Rxh5+ {[%emt 0:00:24]} Rh6 {[%emt 0:00:36]} 44. Rxh6+ {[%emt 0:00:06]} Rxh6 {[%emt 0:00:25]} 45. Nc4 {[%emt 0:00:44]} Rg6 {[%emt 0:00:29]} 46. Rb6 {[%emt 0:00:55]} Be6 {[%emt 0:00:38]} 47. Kf3 {[%emt 0:02:38]} Rf6+ {[%emt 0:00:55]} 48. Kg3 {[%emt 0:00:28]} Rg6 {[%emt 0:00:04]} 1/2-1/2

[Event "55th Rubinstein Memorial-C 2019"]
[Site "Polanica-Zdroj"]
[Date "2019.08.19"]
[Round "3.30"]
[White "Karalchuk, Alieksej"]
[Black "Wrona, Florian"]
[Result "0-1"]
[ECO "D00"]
[WhiteElo "1443"]
[BlackElo "1606"]
[Annotator "NA RC"]
[PlyCount "54"]
[EventDate "2019.08.17"]
[EventType "swiss"]
[EventCountry "POL"]
[SourceTitle "playchess.com"]
[Source "ChessBase"]
[SourceQuality "1"]
[TimeControl "40/5400+30:1800+30"]

1. d4 d5 2. Bf4 Nf6 3. e3 e6 4. Nf3 Bd6 5. Bg3 O-O 6. Nbd2 b6 7. Bd3 Bb7 8. Ne5 Nc6 9. c3 Nd7 10. Ndf3 Ncxe5 11. dxe5 Be7 12. Qc2 g6 13. h4 Nc5 14. Bf4 Nxd3+ 15. Qxd3 c5 16. g4 d4 17. Rh3 dxc3 18. Qxc3 Bxf3 19. Rxf3 Qd5 20. Rh3 Qg2 21. Rh2 Qg1+ 22. Ke2 Qxa1 23. g5 Rfd8 24. Qc2 Qg1 25. h5 Qg4+ 26. f3 Qf5 27. Qc1 Bxg5 0-1

[Event "55th Rubinstein Memorial-C 2019"]
[Site "Polanica-Zdroj"]
[Date "2019.08.19"]
[Round "3.31"]
[White "Wierzbicki, Dawid"]
[Black "Szuber, Dawid"]
[Result "1/2-1/2"]
[ECO "B23"]
[WhiteElo "1598"]
[BlackElo "1343"]
[Annotator "NA RC"]
[PlyCount "65"]
[EventDate "2019.08.17"]
[EventType "swiss"]
[EventCountry "POL"]
[SourceTitle "playchess.com"]
[Source "ChessBase"]
[SourceQuality "1"]
[TimeControl "40/5400+30:1800+30"]

1. e4 {[%emt 0:00:00]} c5 {[%emt 0:00:00]} 2. Nc3 {[%emt 0:00:00]} d6 {[%emt 0:00:00]} 3. g3 {[%emt 0:00:00]} Nf6 {[%emt 0:00:23]} 4. Bg2 {[%emt 0:00:04]} Nc6 {[%emt 0:00:29]} 5. d3 {[%emt 0:00:04]} g6 {[%emt 0:02:18]} 6. Be3 {[%emt 0:00:12]} Bg7 {[%emt 0:00:25]} 7. h3 {[%emt 0:00:06]} Bd7 {[%emt 0:00:48]} 8. Qd2 {[%emt 0:00:04]} a6 {[%emt 0:06:04]} 9. Nge2 {[%emt 0:03:18]} Qc8 {[%emt 0:03:07]} 10. Bh6 {[%emt 0:00:26]} O-O {[%emt 0:00:48]} 11. h4 b5 {[%emt 0:04:47]} 12. h5 {[%emt 0:00:46]} Bxh6 {[%emt 0:24:20]} 13. Qxh6 {[%emt 0:02:35]} Ng4 {[%emt 0:02:24]} 14. Qd2 {[%emt 0:00:36]} f5 {[%emt 0:00:42]} 15. Nd5 {[%emt 0:00:34]} Qb7 {[%emt 0:01:03]} 16. exf5 {[%emt 0:00:08]} Bxf5 {[%emt 0:02:13]} 17. Nxe7+ {[%emt 0:01:31]} Qxe7 {[%emt 0:00:21]} 18. Bxc6 {[%emt 0:00:06]} Rac8 {[%emt 0:00:31]} 19. Bd5+ {[%emt 0:01:39]} Be6 {[%emt 0:00:22]} 20. Bxe6+ {[%emt 0:01:30]} Qxe6 {[%emt 0:00:02]} 21. O-O {[%emt 0:00:35]} Rce8 {[%emt 0:05:03]} 22. Nf4 {[%emt 0:01:12]} Qf5 {[%emt 0:03:18]} 23. hxg6 {[%emt 0:02:36]} hxg6 {[%emt 0:00:44]} 24. Rae1 {[%emt 0:00:33]} Ne5 {[%emt 0:01:28]} 25. Kg2 {[%emt 0:00:19]} g5 {[%emt 0:01:21]} 26. Nh3 {[%emt 0:00:56]} Nf3 {[%emt 0:03:32]} 27. Qd1 {[%emt 0:00:53]} Nxe1+ {[%emt 0:01:52]} 28. Rxe1 {[%emt 0:00:32]} Qd5+ {[%emt 0:14:08]} 29. Kh2 {[%emt 0:00:23]} Kg7 {[%emt 0:07:04]} 30. Rxe8 {[%emt 0:01:14]} Rxe8 {[%emt 0:00:30]} 31. Qg4 {[%emt 0:00:44]} Rh8 {[%emt 0:00:55]} 32. f4 {[%emt 0:00:44]} Kf7 {[%emt 0:07:04]} 33. fxg5 {[%emt 0:01:35]} 1/2-1/2

[Event "55th Rubinstein Memorial-C 2019"]
[Site "Polanica-Zdroj"]
[Date "2019.08.19"]
[Round "3.32"]
[White "Karleszko, Karolina"]
[Black "Zaniewski, Mariusz"]
[Result "1-0"]
[ECO "B19"]
[WhiteElo "1596"]
[BlackElo "1301"]
[Annotator "NA RC"]
[PlyCount "57"]
[EventDate "2019.08.17"]
[EventType "swiss"]
[EventCountry "POL"]
[SourceTitle "playchess.com"]
[Source "ChessBase"]
[SourceQuality "1"]
[TimeControl "40/5400+30:1800+30"]

1. e4 c6 2. d4 d5 3. Nd2 dxe4 4. Nxe4 Bf5 5. Ng3 Bg6 6. h4 h6 7. Nf3 Nd7 8. h5 Bh7 9. Bf4 Ngf6 10. Bd3 Nd5 11. Be5 Qa5+ 12. Kf1 Bxd3+ 13. Qxd3 f6 14. c4 Qa6 15. Rd1 Nb4 16. Qb3 fxe5 17. Qxb4 exd4 18. Kg1 O-O-O 19. Qe1 Qxc4 20. Rh4 c5 21. Rc1 Qd5 22. Rxd4 Qxa2 23. Rd2 Qa5 24. Qe6 Qb6 25. Qg4 e6 26. Rcd1 Nf6 27. Rxd8+ Qxd8 28. Rxd8+ Kxd8 29. Qxe6 1-0

[Event "55th Rubinstein Memorial-C 2019"]
[Site "Polanica-Zdroj"]
[Date "2019.08.19"]
[Round "3.33"]
[White "Waszkowska, Sandra"]
[Black "Smukowski, Bartosz"]
[Result "1/2-1/2"]
[ECO "A40"]
[WhiteElo "1299"]
[BlackElo "1595"]
[Annotator "NA RC"]
[PlyCount "155"]
[EventDate "2019.08.17"]
[EventType "swiss"]
[EventCountry "POL"]
[SourceTitle "playchess.com"]
[Source "ChessBase"]
[SourceQuality "1"]
[TimeControl "40/5400+30:1800+30"]

1. d4 e6 2. Nf3 d5 3. Bf4 Nf6 4. e3 Nbd7 5. h3 Be7 6. Be2 O-O 7. O-O c5 8. c3 b6 9. Nbd2 Bb7 10. Rc1 Rc8 11. Bd3 Ne4 12. Ne5 Nxe5 13. Bxe5 Nxd2 14. Qxd2 c4 15. Bb1 f5 16. Rfe1 Bd6 17. Bf4 h6 18. Bxd6 Qxd6 19. f4 Rf6 20. Qe2 Qe7 21. Rf1 Qf7 22. Rf3 Bc6 23. Rg3 Be8 24. Bc2 Qh5 25. Qxh5 Bxh5 26. Bd1 Be8 27. Be2 Bf7 28. Rb1 Kh7 29. b3 cxb3 30. Rxb3 Be8 31. Rf3 Bh5 32. Rf2 Bxe2 33. Rxe2 Rf7 34. Rc2 Rc6 35. Kf1 Rfc7 36. Ke2 Kg8 37. Kd3 Kf7 38. Rb1 g5 39. fxg5 hxg5 40. g4 fxg4 41. hxg4 Kg6 42. Rh1 Rc8 43. Rh3 b5 44. Rh1 b4 45. Rhc1 Rxc3+ 46. Rxc3 bxc3 47. Rxc3 Rb8 48. Rb3 Rh8 49. Rb2 Rh4 50. Rg2 Rh1 51. Kc3 Rb1 52. Kd3 Rf1 53. Ke2 Rh1 54. Kd3 Rf1 55. Ke2 Rb1 56. Kd3 a6 57. Kc2 Rf1 58. Kc3 a5 59. Kd2 a4 60. Kc3 Kf6 61. Rg3 Rb1 62. Rg2 a3 63. Rf2+ Kg6 64. Rg2 Kf6 65. Rf2+ Ke7 66. Rg2 Kd6 67. Kd3 e5 68. dxe5+ Kxe5 69. Rf2 Rb2 70. Rxb2 axb2 71. Kc2 Ke4 72. Kxb2 Kxe3 73. Kc2 Ke2 74. Kc3 Ke3 75. Kc2 Ke2 76. Kc3 Ke3 77. Kc2 Ke2 78. Kc3 1/2-1/2

[Event "55th Rubinstein Memorial-C 2019"]
[Site "Polanica-Zdroj"]
[Date "2019.08.20"]
[Round "4.1"]
[White "Burdzicki, Stanislaw"]
[Black "Majek, Kacper"]
[Result "1/2-1/2"]
[ECO "C54"]
[WhiteElo "1785"]
[BlackElo "1984"]
[Annotator "NA"]
[PlyCount "77"]
[EventDate "2019.08.17"]
[EventType "swiss"]
[EventCountry "POL"]
[SourceTitle "playchess.com"]
[Source "ChessBase"]
[SourceQuality "1"]
[TimeControl "40/5400+30:1800+30"]

1. e4 {[%emt 0:07:39]} e5 {[%emt 0:00:00]} 2. Nf3 {[%emt 0:00:04]} Nc6 {[%emt 0:00:00]} 3. Bc4 {[%emt 0:00:33]} Bc5 {[%emt 0:00:00]} 4. c3 {[%emt 0:00:12]} Nf6 {[%emt 0:00:00]} 5. d4 {[%emt 0:00:27]} exd4 {[%emt 0:00:01]} 6. e5 {[%emt 0:00:16]} d5 {[%emt 0:02:03]} 7. Bb5 {[%emt 0:00:36]} Ne4 {[%emt 0:00:19]} 8. cxd4 {[%emt 0:00:35]} Bb6 {[%emt 0:01:33]} 9. Nc3 {[%emt 0:01:57]} O-O {[%emt 0:00:19]} 10. Be3 {[%emt 0:02:32]} Nxc3 {[%emt 0:06:02]} 11. bxc3 {[%emt 0:00:56]} Ne7 {[%emt 0:01:07]} 12. Qc2 {[%emt 0:20:22]} Bf5 {[%emt 0:00:32]} 13. Bd3 {[%emt 0:00:19]} Qd7 {[%emt 0:01:27]} 14. O-O {[%emt 0:02:29]} Bxd3 {[%emt 0:01:00]} 15. Qxd3 {[%emt 0:00:06]} Qf5 {[%emt 0:00:07]} 16. Qe2 {[%emt 0:05:19]} Qg4 {[%emt 0:12:13]} 17. h3 {[%emt 0:02:48]} Qh5 {[%emt 0:02:11]} 18. Kh2 {[%emt 0:03:42]} f6 {[%emt 0:11:02]} 19. exf6 {[%emt 0:04:47]} Rxf6 {[%emt 0:01:06]} 20. g4 {[%emt 0:00:22]} Qf7 {[%emt 0:03:21]} 21. Ne5 {[%emt 0:02:49]} Qe6 {[%emt 0:00:49]} 22. Bg5 {[%emt 0:02:20]} h6 {[%emt 0:02:12]} 23. Bxf6 {[%emt 0:05:51]} gxf6 {[%emt 0:00:02]} 24. f4 {[%emt 0:00:06]} c5 {[%emt 0:06:43]} 25. Qe3 {[%emt 0:08:48]} cxd4 {[%emt 0:00:21]} 26. cxd4 {[%emt 0:00:10]} fxe5 {[%emt 0:11:49]} 27. fxe5 {[%emt 0:00:23]} Nc6 {[%emt 0:00:09]} 28. Rad1 {[%emt 0:11:09]} Rf8 {[%emt 0:00:51]} 29. Rxf8+ {[%emt 0:01:47]} Kxf8 {[%emt 0:00:01]} 30. Rf1+ {[%emt 0:01:26]} Kg8 {[%emt 0:04:35]} 31. Rf4 {[%emt 0:03:12]} Nxd4 {[%emt 0:12:00]} 32. Rxd4 {[%emt 0:02:45]} Qc6 {[%emt 0:01:35]} 33. e6 {[%emt 0:02:57]} Bxd4 {[%emt 0:00:23]} 34. Qxd4 {[%emt 0:00:13]} Qxe6 {[%emt 0:00:09]} 35. Qxa7 {[%emt 0:00:28]} Qe5+ {[%emt 0:01:51]} 36. Kg2 {[%emt 0:00:31]} Qe4+ {[%emt 0:00:36]} 37. Kf2 {[%emt 0:01:40]} Qf4+ {[%emt 0:02:02]} 38. Kg2 {[%emt 0:00:34]} Qe4+ {[%emt 0:00:40]} 39. Kf2 {[%emt 0:00:05]} 1/2-1/2

[Event "55th Rubinstein Memorial-C 2019"]
[Site "Polanica-Zdroj"]
[Date "2019.08.20"]
[Round "4.2"]
[White "Szydelko, Michal"]
[Black "Kardys, Zbigniew"]
[Result "1/2-1/2"]
[ECO "B85"]
[WhiteElo "1752"]
[BlackElo "1949"]
[Annotator "NA"]
[PlyCount "97"]
[EventDate "2019.08.17"]
[EventType "swiss"]
[EventCountry "POL"]
[SourceTitle "playchess.com"]
[Source "ChessBase"]
[SourceQuality "1"]
[TimeControl "40/5400+30:1800+30"]

1. e4 {[%emt 0:00:00]} c5 {[%emt 0:00:00]} 2. Nf3 {[%emt 0:00:00]} e6 {[%emt 0:01:06]} 3. d4 {[%emt 0:00:10]} cxd4 {[%emt 0:00:06]} 4. Nxd4 {[%emt 0:00:06]} Nf6 {[%emt 0:00:15]} 5. Nc3 {[%emt 0:00:13]} d6 {[%emt 0:01:28]} 6. Be2 {[%emt 0:00:33]} Nc6 {[%emt 0:03:42]} 7. Be3 {[%emt 0:00:36]} Be7 {[%emt 0:03:05]} 8. O-O {[%emt 0:00:16]} O-O {[%emt 0:00:03]} 9. f4 {[%emt 0:02:05]} a6 {[%emt 0:14:47]} 10. Qe1 {[%emt 0:05:01]} Qc7 {[%emt 0:33:27]} 11. Rd1 {[%emt 0:00:29]} Bd7 {[%emt 0:05:24]} 12. Qg3 {[%emt 0:03:45]} Kh8 {[%emt 0:01:58]} 13. Nb3 {[%emt 0:17:24]} b5 {[%emt 0:16:25]} 14. Bf3 {[%emt 0:08:50]} e5 {[%emt 0:06:10]} 15. Nd5 {[%emt 0:03:23]} Nxd5 {[%emt 0:00:05]} 16. exd5 {[%emt 0:00:15]} exf4 {[%emt 0:02:02]} 17. Bxf4 {[%emt 0:00:18]} Na5 {[%emt 0:05:24]} 18. Rfe1 {[%emt 0:08:05]} Nxb3 {[%emt 0:01:46]} 19. cxb3 {[%emt 0:01:04]} Qb6+ {[%emt 0:00:44]} 20. Kh1 {[%emt 0:02:47]} Rfe8 {[%emt 0:00:11]} 21. Be3 {[%emt 0:12:35]} Qd8 {[%emt 0:00:19]} 22. Qf4 {[%emt 0:00:50]} Kg8 {[%emt 0:01:12]} 23. Bh5 {[%emt 0:05:49]} g6 {[%emt 0:00:17]} 24. Rf1 {[%emt 0:00:27]} Rf8 {[%emt 0:01:32]} 25. Bf3 {[%emt 0:02:32]} Bf5 {[%emt 0:00:17]} 26. g4 {[%emt 0:00:53]} Bd7 {[%emt 0:00:25]} 27. Bd4 {[%emt 0:00:46]} f5 {[%emt 0:00:25]} 28. g5 {[%emt 0:01:02]} Be8 {[%emt 0:00:46]} 29. h4 {[%emt 0:00:15]} Rf7 {[%emt 0:00:25]} 30. Rfe1 {[%emt 0:00:59]} Bf8 {[%emt 0:00:01]} 31. Re6 {[%emt 0:03:19]} Rc8 {[%emt 0:00:28]} 32. h5 {[%emt 0:01:14]} Rd7 {[%emt 0:00:46]} 33. Qh4 {[%emt 0:04:09]} Bg7 {[%emt 0:00:25]} 34. Rde1 {[%emt 0:02:56]} Bf7 {[%emt 0:00:02]} 35. Bxg7 {[%emt 0:01:15]} Kxg7 {[%emt 0:00:02]} 36. Qd4+ {[%emt 0:00:17]} Kg8 {[%emt 0:00:21]} 37. Rf6 {[%emt 0:01:10]} Re7 {[%emt 0:00:48]} 38. Rg1 {[%emt 0:00:33]} Re5 {[%emt 0:00:31]} 39. Qa7 {[%emt 0:01:17]} Qc7 {[%emt 0:01:15]} 40. Qxc7 {[%emt 0:00:49]} Rxc7 {[%emt 0:00:03]} 41. Rxd6 {[%emt 0:30:01]} gxh5 {[%emt 0:30:13]} 42. Rd8+ {[%emt 0:04:36]} Kg7 {[%emt 0:00:02]} 43. d6 {[%emt 0:00:13]} Rc2 {[%emt 0:00:31]} 44. Rd1 {[%emt 0:00:21]} Re3 {[%emt 0:00:30]} 45. d7 {[%emt 0:07:07]} Rxf3 {[%emt 0:00:09]} 46. Rg8+ {[%emt 0:00:10]} Bxg8 {[%emt 0:00:12]} 47. d8=Q {[%emt 0:00:03]} Rh3+ {[%emt 0:00:30]} 48. Kg1 {[%emt 0:00:04]} Rg3+ {[%emt 0:00:25]} 49. Kf1 {[%emt 0:00:04]} 1/2-1/2

[Event "55th Rubinstein Memorial-C 2019"]
[Site "Polanica-Zdroj"]
[Date "2019.08.20"]
[Round "4.3"]
[White "Zgoda, Damian"]
[Black "Sroka, Janusz"]
[Result "0-1"]
[ECO "A40"]
[WhiteElo "1725"]
[BlackElo "1875"]
[Annotator "NA"]
[PlyCount "94"]
[EventDate "2019.08.17"]
[EventType "swiss"]
[EventCountry "POL"]
[SourceTitle "playchess.com"]
[Source "ChessBase"]
[SourceQuality "1"]
[TimeControl "40/5400+30:1800+30"]

1. d4 {[%emt 0:00:00]} g6 {[%emt 0:00:15]} 2. Bg5 {[%emt 0:00:52]} Bg7 {[%emt 0:00:14]} 3. e4 {[%emt 0:00:51]} c5 {[%emt 0:00:51]} 4. Nf3 {[%emt 0:03:28]} d6 {[%emt 0:04:42]} 5. c3 {[%emt 0:04:53]} cxd4 {[%emt 0:04:11]} 6. cxd4 {[%emt 0:02:28]} Nc6 {[%emt 0:03:53]} 7. Nc3 {[%emt 0:15:09]} h6 {[%emt 0:17:08]} 8. Be3 {[%emt 0:01:59]} Nf6 {[%emt 0:04:17]} 9. d5 {[%emt 0:06:50]} Nb8 {[%emt 0:06:36]} 10. Qd2 {[%emt 0:02:27]} Nbd7 {[%emt 0:03:05]} 11. Nd4 {[%emt 0:13:19]} Ng4 {[%emt 0:01:59]} 12. Bf4 {[%emt 0:01:07]} Qb6 {[%emt 0:01:44]} 13. Nb3 {[%emt 0:02:38]} g5 {[%emt 0:09:41]} 14. Bg3 {[%emt 0:01:25]} a6 {[%emt 0:01:28]} 15. Be2 {[%emt 0:04:59]} Nge5 {[%emt 0:04:34]} 16. f4 {[%emt 0:03:56]} Ng6 {[%emt 0:10:21]} 17. Na4 {[%emt 0:03:30]} Qd8 {[%emt 0:00:35]} 18. Nd4 {[%emt 0:01:47]} gxf4 {[%emt 0:01:17]} 19. Bh5 {[%emt 0:10:42]} Nde5 {[%emt 0:04:33]} 20. Nf5 {[%emt 0:03:21]} Bf6 {[%emt 0:00:19]} 21. Bf2 {[%emt 0:00:38]} Nc4 {[%emt 0:00:46]} 22. Qc2 {[%emt 0:02:55]} Qa5+ {[%emt 0:02:04]} 23. Nc3 {[%emt 0:00:18]} Nxb2 {[%emt 0:05:24]} 24. Rc1 {[%emt 0:00:58]} Bxc3+ {[%emt 0:04:26]} 25. Qxc3 {[%emt 0:00:08]} Nd3+ {[%emt 0:00:07]} 26. Ke2 {[%emt 0:00:53]} Nxc1+ {[%emt 0:00:52]} 27. Rxc1 {[%emt 0:00:19]} Qxc3 {[%emt 0:00:13]} 28. Rxc3 {[%emt 0:00:06]} Bxf5 {[%emt 0:03:26]} 29. exf5 {[%emt 0:02:01]} Ne5 {[%emt 0:00:41]} 30. Rc7 {[%emt 0:01:08]} O-O {[%emt 0:00:16]} 31. Bd4 {[%emt 0:01:39]} Rac8 {[%emt 0:00:22]} 32. Rxe7 {[%emt 0:00:58]} Rfe8 {[%emt 0:02:14]} 33. Rxb7 {[%emt 0:01:12]} Rb8 {[%emt 0:00:24]} 34. Rc7 {[%emt 0:02:47]} Rec8 {[%emt 0:01:20]} 35. Ra7 {[%emt 0:02:17]} Rc2+ {[%emt 0:00:06]} 36. Kd1 {[%emt 0:00:30]} Rxa2 {[%emt 0:00:09]} 37. Rc7 {[%emt 0:01:28]} Rb1+ {[%emt 0:00:37]} 38. Rc1 {[%emt 0:00:06]} Rxc1+ {[%emt 0:00:14]} 39. Kxc1 {[%emt 0:00:04]} Nd3+ {[%emt 0:00:43]} 40. Kd1 {[%emt 0:00:25]} Rxg2 {[%emt 0:00:37]} 41. Be2 {[%emt 0:30:24]} Nb4 {[%emt 0:30:10]} 42. Bc4 {[%emt 0:01:09]} Rxh2 {[%emt 0:00:15]} 43. Bc3 {[%emt 0:01:28]} a5 {[%emt 0:00:14]} 44. Bf6 {[%emt 0:00:35]} Nc2 {[%emt 0:00:58]} 45. Bb5 {[%emt 0:00:12]} Ne3+ {[%emt 0:00:07]} 46. Ke1 {[%emt 0:00:26]} f3 {[%emt 0:00:26]} 47. Bd4 {[%emt 0:01:18]} Nc2+ {[%emt 0:00:22]} 0-1

[Event "55th Rubinstein Memorial-C 2019"]
[Site "Polanica-Zdroj"]
[Date "2019.08.20"]
[Round "4.4"]
[White "Obrochta, Lena"]
[Black "Musial, Igor"]
[Result "1-0"]
[ECO "B59"]
[WhiteElo "1870"]
[BlackElo "1717"]
[Annotator "NA"]
[PlyCount "33"]
[EventDate "2019.08.17"]
[EventType "swiss"]
[EventCountry "POL"]
[SourceTitle "playchess.com"]
[Source "ChessBase"]
[SourceQuality "1"]
[TimeControl "40/5400+30:1800+30"]

1. e4 {[%emt 0:00:00]} c5 {[%emt 0:00:00]} 2. Nf3 {[%emt 0:00:15]} d6 {[%emt 0:00:00]} 3. d4 {[%emt 0:00:06]} cxd4 {[%emt 0:02:03]} 4. Nxd4 {[%emt 0:00:05]} Nf6 {[%emt 0:00:34]} 5. Nc3 {[%emt 0:01:48]} Nc6 {[%emt 0:00:41]} 6. Be2 {[%emt 0:01:15]} e5 {[%emt 0:01:03]} 7. Nb3 {[%emt 0:00:28]} h6 {[%emt 0:01:36]} 8. Be3 {[%emt 0:01:32]} Be6 {[%emt 0:02:29]} 9. O-O {[%emt 0:03:21]} Be7 {[%emt 0:01:18]} 10. f4 {[%emt 0:03:03]} exf4 {[%emt 0:09:46]} 11. Bxf4 {[%emt 0:01:38]} O-O 12. Qe1 {[%emt 0:06:43]} Ne5 {[%emt 0:12:51]} 13. Qg3 {[%emt 0:03:00]} Ng6 {[%emt 0:02:39]} 14. Be3 {[%emt 0:02:05]} a6 {[%emt 0:15:59]} 15. Nd4 {[%emt 0:02:24]} b5 {[%emt 0:05:31]} 16. Nxe6 {[%emt 0:02:25]} fxe6 17. Qxg6 {[%emt 0:00:05]} 1-0

[Event "55th Rubinstein Memorial-C 2019"]
[Site "Polanica-Zdroj"]
[Date "2019.08.20"]
[Round "4.5"]
[White "Kaliszuk, Kamil"]
[Black "Maslo, Slawomir"]
[Result "1-0"]
[ECO "B13"]
[WhiteElo "1853"]
[BlackElo "1687"]
[Annotator "NA"]
[PlyCount "47"]
[EventDate "2019.08.17"]
[EventType "swiss"]
[EventCountry "POL"]
[SourceTitle "playchess.com"]
[Source "ChessBase"]
[SourceQuality "1"]
[TimeControl "40/5400+30:1800+30"]

1. e4 {[%emt 0:00:00]} c6 {[%emt 0:00:00]} 2. d4 {[%emt 0:00:19]} d5 {[%emt 0:00:00]} 3. exd5 {[%emt 0:00:32]} cxd5 {[%emt 0:00:00]} 4. Bd3 {[%emt 0:00:19]} Nc6 {[%emt 0:00:03]} 5. c3 {[%emt 0:00:27]} Qc7 {[%emt 0:00:31]} 6. Ne2 {[%emt 0:00:13]} Bg4 {[%emt 0:00:13]} 7. O-O {[%emt 0:00:12]} Nf6 {[%emt 0:02:34]} 8. f3 {[%emt 0:01:26]} Bd7 {[%emt 0:00:32]} 9. Bf4 {[%emt 0:00:44]} e5 {[%emt 0:00:28]} 10. Bxe5 {[%emt 0:10:19]} Nxe5 {[%emt 0:00:28]} 11. dxe5 {[%emt 0:00:01]} Qxe5 {[%emt 0:03:38]} 12. Re1 {[%emt 0:01:23]} O-O-O {[%emt 0:04:42]} 13. Nd4 {[%emt 0:02:10]} Qh5 {[%emt 0:00:24]} 14. Nd2 {[%emt 0:02:07]} Bd6 {[%emt 0:00:47]} 15. Nf1 {[%emt 0:00:30]} g5 {[%emt 0:06:59]} 16. Ng3 {[%emt 0:23:32]} Qh4 {[%emt 0:04:24]} 17. Ndf5 {[%emt 0:02:09]} Bxf5 {[%emt 0:01:09]} 18. Bxf5+ {[%emt 0:01:24]} Kb8 {[%emt 0:00:16]} 19. Qd4 {[%emt 0:01:35]} g4 {[%emt 0:16:21]} 20. Bxg4 {[%emt 0:10:33]} Rhg8 {[%emt 0:02:21]} 21. Bh3 {[%emt 0:00:59]} Bxg3 {[%emt 0:00:43]} 22. hxg3 {[%emt 0:00:09]} Qxg3 {[%emt 0:06:47]} 23. Qxf6 {[%emt 0:00:43]} Qxh3 {[%emt 0:00:14]} 24. Qxd8+ {[%emt 0:00:05]} 1-0